Workbook

Sheet Intro (hidden)
A1: ART treatment outcome data is collected from registered ART providers directly by VARTA and by the University of Technology Sydney (UTS).
A3: This report outlines the procedures carried out for registered ART providers that are currently accredited by RTAC under the Assisted Reproductive Treatment Act 2008. Data is provided on a financial year basis ( between 1 July 2015 and 30 June 2016) as required under the Act.
A5: The following dates indicate when the latest updates were provided – pregnancy outcomes for each unit will only have been recorded up to these dates:
A6: • XX/XX/2016 Ballarat IVF
A7: • XX/XX/2016 City Fertility Centre
A8: • XX/XX/2016 City Babies
A9: • XX/XX/2016 Melbourne IVF
A10: • XX/XX/2016 Monash IVF
A12: This report includes all forms of assisted reproductive treatment (ART) cycles and artificial insemination (AI) using either partner sperm or donor sperm. Cycles involving: purely egg or embryo movement; embryo disposal; or cancelled prior to Follicle Stimulating Hormone (FSH) stimulation or prior to thawing the egg or embryo, are not included.
A14: Where a woman may have treatment at more than one treatment site, the information is presented per registered ART provider. Elsewhere, details of each treatment site for a registered ART provider are provided.
B20: Insert diagram from Understanding IVF success rates brochure and mark which tables relate to which part of the process (where applicable)
D44: Figure 7, Number of patients and treatment cycles per financial year, 2008-09 to 2014-15
A45: The data in the VARTA annual report cannot be used to compare success rates between ART procedures and between treatment sites. In evidence-based clinical practice, the most reliable and strongest evidence to compare the efficacy between ART procedures or to compare the success rates between treatment sites is generated from prospective randomised controlled trials (RCT). Only RCT can ensure that the ‘known’ and ‘unknown’ factors which impact the success rate are evenly distributed between comparison groups. | B45: Too technical. Align more with copy used in Understanding IVF success rates brochure | E45: 2008-09 | F45: 2009-10 | G45: 2010-11 | H45: 2011-12 | I45: 2012-13 | J45: 2013-14 | K45: 2014-15 | L45: 2015-16
A46: The data for VARTA annual report are collected retrospectively. ART clinics in Victoria practice very differently in terms of patient selection and use of laboratory techniques. ‘Known’ factors; such as age of the woman treated; the type of subfertility problem; the length of subfertility; previous pregnancies and live births; the history of pregnancy losses; the number of cycles undergone; and other ‘unknown’ factors are not evenly distributed between treatment sites. | D46: Number of patients | E46: 9262 | F46: 9525 | G46: 9685 | H46: 10252 | I46: 10598 | J46: 11113 | K46: 11308
A47: Therefore, VARTA annual report data only presents number of cycles; type of ART procedures; and number of pregnancies and number of births, not the success rates. Given the differences in ‘known’ and ‘unknown’ factors between treatment sites, it is not correct to calculate the success rate by number of live births over number of cycles and compare between treatment sites. Furthermore, the information on intention to treat is not available in the VARTA data. It is not correct to compare the efficacy between ART procedures since cancelled cycles and ‘known’ and ‘unknown’ factors are not taken into consideration. | D47: < 35 years | E47: 36.6 | F47: 36.0 | G47: 36.3 | H47: =H50/H46*100 -> 36.0 | I47: =I50/I46*100 -> 36.7 | J47: =J50/J46*100 -> 37.5 | K47: =K50/K46*100 -> 37.6
D48: 35-39 years | E48: 38.0 | F48: 37.6 | G48: 36.4 | H48: =H51/H46*100 -> 36.7 | I48: =I51/I46*100 -> 35.7 | J48: =J51/J46*100 -> 35.6 | K48: =K51/K46*100 -> 35.7
A49: Data outcomes table of content: | D49: ≥ 40 years | E49: 25.4 | F49: 26.4 | G49: 27.3 | H49: =H52/H46*100 -> 27.3 | I49: =I52/I46*100 -> 27.6 | J49: =J52/J46*100 -> 26.9 | K49: =K52/K46*100 -> 26.7
A50: Section 1 - Final outcomes for treatment cycles commenced in 2014-15 financial year | D50: < 35 years | E50: 3387 | F50: 3426 | G50: 3515 | H50: 3695 | I50: 3893 | J50: 4165 | K50: 4250
A51: Section 2 - Outcomes from treatment cycles, 2015–16 financial year | D51: 35-39 years | E51: 3520 | F51: 3585 | G51: 3523 | H51: 3758 | I51: 3780 | J51: 3954 | K51: 4035
A52: Section 3 - Multiple pregnancies, 2015-16 financial year | D52: ≥ 40 years | E52: 2355 | F52: 2514 | G52: 2647 | H52: 2799 | I52: 2925 | J52: 2994 | K52: 3023
A53: Section 4 - Donor treatment, 2015–16 financial year
A54: Section 5 - Surrogacy, 2015-16 financial year | D54: Number of cycles | E54: 17687 | F54: 18530 | G54: 18057 | H54: =SUM(H56:H61) -> 19361 | I54: =SUM(I56:I61) -> 19847 | J54: 20632 | K54: 20569
A55: Section 6 - Storage of gametes, 2015-16 financial year
A56: Section 7 - Preimplantation genetic diagnosis and screening, 2015-16 financial year | D56: Fresh | E56: 11068 | F56: 10854 | G56: 10655 | H56: 11489 | I56: 11455 | J56: 11889 | K56: 11772
D57: Thaw | E57: 6425 | F57: 6364 | G57: 6417 | H57: 6916 | I57: 7212 | J57: 7255 | K57: 7115
B58: Diagrams to move under Focus 4 Monitoring> Clinic data trends
D59: AI | F59: 1133 | G59: 728 | H59: 611 | I59: 842 | J59: 972 | K59: 1088
D60: DI | E60: 136 | F60: 167 | G60: 214 | H60: 275 | I60: 283 | J60: 471 | K60: 555
D61: GIFT/Surr | E61: 58 | F61: 12 | G61: 43 | H61: 70 | I61: 55 | J61: 45 | K61: 39
D64: Note:
D65: AI was not reported for 2008-09
D66: 2008-09, 2009-10, 2010-11, 2011-12, 2012-13, 2013-14, 2014-15 data were from the final outcome data
D67: 2015-16 data were from the treatment data
A74: Final 2014-15 pregnancy outcomes data was updated in September 2015. There were XX% (XX of XXXX pregnancies) of 2014-15 data with unknown outcomes. | B74: Report under Focus 4 Monitoring> Clinic data trends
A76: Legend to appear as required on each relevant section
A78: Legend (for full glossary, refer to page XX)
A79: Birth: A birth event - the delivery of a baby or babies.
A80: Live birth: birth of a living baby or babies (multiple births are classified as a single live birth)
A81: Babies born: includes liveborn and still born
A82: Liveborn babies: A baby that is born alive
A83: Age at the first treatment: Age is based on the cycle date -either the first date where FSH/stimulation drug is administrated, or the date of Last Menstrual Period (LMP) for unstimulated cycles (including natural fresh cycles and thaw cycles).
A84: Clinical pregnancy: A pregnancy verified by ultrasound at six-seven weeks gestation. A clinical pregnancy does not guarantee the birth of a baby, as miscarriages occur. Women can have more than 1 clinical pregnancy in the financial year
A85: Thawed: cryopreserved/frozen eggs, sperm or embryos must be thawed prior to transfer

Sheet Section 1 - Final outcomes
A1: SECTION 1
A2: Final outcomes for treatment cycles commenced in 2019-20 financial year
A4: This section includes a final outcome of treatment procedures undertaken in 2019-20. These final figures were not available at the time of the production of the 2019 Annual Report. Similarly, this year, a full report on treatment outcomes will not be possible until the 2021 Annual Report. As pregnancies are ongoing, some outcomes are not known at the time of this report going to print.
A6: Overview
A8: Table 1.1 Number of women treated, 2019-20 financial year
A10: Treatment site | B10: No. of women treated | F10: No. of cycles included | G10: No. of women with fresh embryos transferred | H10: No. of women with thawed embryos transferred | I10: No. of women with AI using partner sperm | J10: No. of women with AI using donor sperm
B11: < 35 | C11: 35-39 | D11: ≥ 40 | E11: All
A12: Adora Fertility, Greensborough | B12: 495 | C12: 408 | D12: 231 | E12: 1134 | F12: 2179 | G12: 590 | H12: 493 | I12: 20 | J12: 0
A13: Ballarat IVF, Ballarat | B13: 154 | C13: 100 | D13: 44 | E13: 298 | F13: 531 | G13: 48 | H13: 169 | I13: 16 | J13: 14
A14: City Babies, Richmond | B14: 73 | C14: 40 | D14: 21 | E14: 134 | F14: 237 | G14: 0 | H14: 0 | I14: 134 | J14: 0
A15: City Fertility Centre, Bundoora | B15: 97 | C15: 79 | D15: 39 | E15: 215 | F15: 449 | G15: 45 | H15: 124 | I15: 7 | J15: 11
A16: City Fertility Centre, Melbourne | B16: 226 | C16: 251 | D16: 132 | E16: 609 | F16: 1193 | G16: 175 | H16: 296 | I16: 27 | J16: 70
A17: Genea, Melbourne | B17: 44 | C17: 47 | D17: 33 | E17: 124 | F17: 251 | G17: 32 | H17: 51 | I17: 3 | J17: 2
A18: Melbourne IVF, East Melbourne | B18: 1154 | C18: 1512 | D18: 824 | E18: 3490 | F18: 6592 | G18: 1259 | H18: 1520 | I18: 180 | J18: 152
A19: Melbourne IVF, Mt Waverley | B19: 127 | C19: 124 | D19: 55 | E19: 306 | F19: 556 | G19: 120 | H19: 150 | I19: 15 | J19: 21
A20: Monash IVF, Bendigo | B20: 43 | C20: 27 | D20: 18 | E20: 88 | F20: 130 | G20: 38 | H20: 36 | I20: 5 | J20: 1
A21: Monash IVF, Clayton (Monash IVF Monash Surgical Private Hospital) | B21: 640 | C21: 711 | D21: 505 | E21: 1856 | F21: 3136 | G21: 455 | H21: 890 | I21: 83 | J21: 36
A22: Monash IVF, Geelong | B22: 135 | C22: 100 | D22: 60 | E22: 295 | F22: 509 | G22: 96 | H22: 150 | I22: 19 | J22: 8
A23: Monash IVF, Mildura | B23: 27 | C23: 12 | D23: 7 | E23: 46 | F23: 63 | G23: 25 | H23: 16 | I23: 2 | J23: 3
A24: Monash IVF, Richmond (Monash IVF Epworth Hospital) | B24: 265 | C24: 366 | D24: 237 | E24: 868 | F24: 1310 | G24: 163 | H24: 405 | I24: 35 | J24: 36
A25: Monash IVF, Sale (Central Wellington Health Services) | B25: 24 | C25: 14 | D25: 16 | E25: 54 | F25: 72 | G25: 25 | H25: 16 | I25: 0 | J25: 0
A26: Monash IVF, Sunshine (Western Day Surgery) | B26: 95 | C26: 77 | D26: 51 | E26: 223 | F26: 321 | G26: 103 | H26: 58 | I26: 1 | J26: 0
A27: Newlife IVF, Box Hill | B27: 144 | C27: 145 | D27: 75 | E27: 364 | F27: 706 | G27: 112 | H27: 184 | I27: 0 | J27: 4
A28: Number 1 Fertility, East Melbourne | B28: 476 | C28: 707 | D28: 344 | E28: 1527 | F28: 2741 | G28: 296 | H28: 616 | I28: 73 | J28: 1
A29: Number 1 Fertility, Geelong | B29: 38 | C29: 47 | D29: 24 | E29: 109 | F29: 140 | G29: 21 | H29: 23 | I29: 2 | J29: 0
A30: Reproductive Services, Royal Women Hospital (Melbourne IVF) | B30: 590 | C30: 418 | D30: 293 | E30: 1301 | F30: 2393 | G30: 622 | H30: 585 | I30: 7 | J30: 10
A31: Aggregated total | B31: =SUM(B12:B30) -> 4847 | C31: =SUM(C12:C30) -> 5185 | D31: 3009 | E31: 13041 | F31: 23509 | G31: 4225 | H31: 5782 | I31: 629 | J31: 369
A32: AI: artificial insemination.
A35: Table 1.2 Number of women treated and pregnancy and birth outcomes, 2019-20 financial year
A36: Treatment site | B36: No. of women treated | C36: Clinical pregnancies | D36: No. of births | H36: No. of live births | I36: No. of babies born | J36: No. of liveborn babies | K36: Pregnancy outcome unknown
D37: No. of singletons | E37: No. of sets of twins | F37: No. of sets of higher order multiples | G37: All
A38: Adora Fertility, Greensborough | B38: 1134 | C38: 476 | D38: 369 | E38: 10 | F38: 0 | G38: 379 | H38: 375 | I38: 389 | J38: 385 | K38: 1
A39: Ballarat IVF, Ballarat | B39: 298 | C39: 111 | D39: 88 | E39: 4 | F39: 0 | G39: 92 | H39: 90 | I39: 96 | J39: 94 | K39: 1
A40: City Babies, Richmond | B40: 134 | C40: 26 | D40: 22 | E40: 1 | F40: 0 | G40: 23 | H40: 23 | I40: 24 | J40: 24 | K40: 0
A41: City Fertility Centre, Bundoora | B41: 215 | C41: 68 | D41: 58 | E41: 1 | F41: 0 | G41: 59 | H41: 59 | I41: 60 | J41: 60 | K41: 0
A42: City Fertility Centre, Melbourne | B42: 609 | C42: 252 | D42: 187 | E42: 12 | F42: 0 | G42: 199 | H42: 199 | I42: 211 | J42: 211 | K42: 0
A43: Genea, Melbourne | B43: 124 | C43: 39 | D43: 25 | E43: 0 | F43: 0 | G43: 25 | H43: 25 | I43: 25 | J43: 25 | K43: 0
A44: Melbourne IVF, East Melbourne | B44: 3490 | C44: 1590 | D44: 1183 | E44: 49 | F44: 1 | G44: 1233 | H44: 1214 | I44: 1284 | J44: 1264 | K44: 10
A45: Melbourne IVF, Mt Waverley | B45: 306 | C45: 130 | D45: 101 | E45: 3 | F45: 0 | G45: 104 | H45: 102 | I45: 107 | J45: 105 | K45: 1
A46: Monash IVF, Bendigo | B46: 88 | C46: 31 | D46: 25 | E46: 3 | F46: 0 | G46: 28 | H46: 28 | I46: 31 | J46: 31 | K46: 0
A47: Monash IVF, Clayton (Monash IVF Monash Surgical Private Hospital) | B47: 1856 | C47: 625 | D47: 487 | E47: 27 | F47: 0 | G47: 514 | H47: 508 | I47: 541 | J47: 535 | K47: 0
A48: Monash IVF, Geelong | B48: 295 | C48: 121 | D48: 96 | E48: 6 | F48: 0 | G48: 102 | H48: 102 | I48: 108 | J48: 108 | K48: 0
A49: Monash IVF, Mildura | B49: 46 | C49: 17 | D49: 13 | E49: 2 | F49: 0 | G49: 15 | H49: 14 | I49: 17 | J49: 15 | K49: 0
A50: Monash IVF, Richmond (Monash IVF Epworth Hospital) | B50: 868 | C50: 278 | D50: 215 | E50: 8 | F50: 1 | G50: 224 | H50: 221 | I50: 234 | J50: 230 | K50: 0
A51: Monash IVF, Sale (Central Wellington Health Services) | B51: 54 | C51: 10 | D51: 6 | E51: 3 | F51: 0 | G51: 9 | H51: 9 | I51: 12 | J51: 12 | K51: 0
A52: Monash IVF, Sunshine (Western Day Surgery) | B52: 223 | C52: 58 | D52: 43 | E52: 2 | F52: 0 | G52: 45 | H52: 45 | I52: 47 | J52: 47 | K52: 0
A53: Newlife IVF, Box Hill | B53: 364 | C53: 138 | D53: 106 | E53: 7 | F53: 0 | G53: 113 | H53: 112 | I53: 120 | J53: 119 | K53: 0
A54: Number 1 Fertility, East Melbourne | B54: 1527 | C54: 487 | D54: 391 | E54: 6 | F54: 0 | G54: 397 | H54: 394 | I54: 403 | J54: 400 | K54: 0
A55: Number 1 Fertility, Geelong | B55: 109 | C55: 19 | D55: 18 | E55: 0 | F55: 0 | G55: 18 | H55: 17 | I55: 18 | J55: 17 | K55: 1
A56: Reproductive Services, Royal Women Hospital (Melbourne IVF) | B56: 1301 | C56: 481 | D56: 373 | E56: 10 | F56: 1 | G56: 384 | H56: 375 | I56: 396 | J56: 386 | K56: 7
A57: Aggregated total | B57: =SUM(B38:B56) -> 13041 | C57: 4957 | D57: 3806 | E57: 154 | F57: 3 | G57: 3963 | H57: 3912 | I57: 4123 | J57: 4068 | K57: 21
A60: Table 1.3a Fresh embryo transfer cycles and pregnancy outcomes, 2019-20 financial year
A61: This data includes fresh embryos formed from thawed eggs
B62: Women using embryos derived from their own, their partner's or donated eggs
B63: No. of cycles with fresh embryo transferred | C63: % of single embryo transfer | D63: No. of clinical pregnancies | E63: No. of live births | F63: No. of liveborn babies
A64: Treatment site | B64: All ages by treatment site
A65: Adora Fertility, Greensborough | B65: 764 | C65: 88.6 | D65: 186 | E65: 148 | F65: 153
A66: Ballarat IVF, Ballarat | B66: 48 | C66: 100.0 | D66: 16 | E66: 11 | F66: 11
A67: City Fertility Centre, Bundoora | B67: 50 | C67: 94.0 | D67: 7 | E67: 7 | F67: 7
A68: City Fertility Centre, Melbourne | B68: 220 | C68: 81.8 | D68: 51 | E68: 32 | F68: 32
A69: Genea, Melbourne | B69: 40 | C69: 97.5 | D69: 13 | E69: 7 | F69: 7
A70: Melbourne IVF, East Melbourne | B70: 1533 | C70: 92.5 | D70: 599 | E70: 445 | F70: 463
A71: Melbourne IVF, Mt Waverley | B71: 137 | C71: 97.8 | D71: 46 | E71: 37 | F71: 37
A72: Monash IVF, Bendigo | B72: 41 | C72: 97.6 | D72: 15 | E72: 14 | F72: 16
A73: Monash IVF, Clayton (Monash IVF Monash Surgical Private Hospital) | B73: 522 | C73: 77.0 | D73: 128 | E73: 111 | F73: 120
A74: Monash IVF, Geelong | B74: 107 | C74: 96.3 | D74: 31 | E74: 23 | F74: 25
A75: Monash IVF, Mildura | B75: 26 | C75: 96.2 | D75: 7 | E75: 5 | F75: 5
A76: Monash IVF, Richmond (Monash IVF Epworth Hospital) | B76: 182 | C76: 88.5 | D76: 57 | E76: 44 | F76: 46
A77: Monash IVF, Sale (Central Wellington Health Services) | B77: 29 | C77: 55.2 | D77: 9 | E77: 8 | F77: 11
A78: Monash IVF, Sunshine (Western Day Surgery) | B78: 119 | C78: 82.4 | D78: 35 | E78: 25 | F78: 27
A79: Newlife IVF, Box Hill | B79: 126 | C79: 98.4 | D79: 46 | E79: 37 | F79: 38
A80: Number 1 Fertility, East Melbourne | B80: 335 | C80: 100.0 | D80: 127 | E80: 101 | F80: 103
A81: Number 1 Fertility, Geelong | B81: 21 | C81: 100.0 | D81: 8 | E81: 8 | F81: 8
A82: Reproductive Services, Royal Women Hospital (Melbourne IVF) | B82: 747 | C82: 97.5 | D82: 223 | E82: 172 | F82: 179
A84: Aggregated total | B84: =SUM(B65:B83) -> 5047 | C84: 91.1 | D84: =SUM(D65:D83) -> 1604 | E84: 1235 | F84: 1288
A85: Age group | B85: All treatment sites by age group
A86: <35 | B86: 1748 | C86: 95.4 | D86: 722 | E86: 613 | F86: 644
A87: 35-39 | B87: 1938 | C87: 94.2 | D87: 632 | E87: 462 | F87: 477
A88: >=40 | B88: 1361 | C88: 81.0 | D88: 250 | E88: 160 | F88: 167
A89: Aggregated total | B89: =SUM(B86:B88) -> 5047 | C89: 91.1 | D89: =SUM(D86:D88) -> 1604 | E89: 1235 | F89: 1288
A92: Table 1.3b Thawed embryo transfer cycles and pregnancy outcomes, 2019-20 financial year
B93: Women using own eggs
B94: No. of cycles with thawed embryos transferred | C94: % of single embryo transfer | D94: No. of clinical pregnancies | E94: No. of live births | F94: No. of liveborn babies
A95: Treatment site | B95: All ages by treatment site
A96: Adora Fertility, Greensborough | B96: 739 | C96: 96.1 | D96: 284 | E96: 222 | F96: 227
A97: Ballarat IVF, Ballarat | B97: 210 | C97: 99.5 | D97: 84 | E97: 71 | F97: 75
A98: City Fertility Centre, Bundoora | B98: 184 | C98: 94.6 | D98: 58 | E98: 49 | F98: 50
A99: City Fertility Centre, Melbourne | B99: 374 | C99: 86.4 | D99: 159 | E99: 129 | F99: 140
A100: Genea, Melbourne | B100: 72 | C100: 100.0 | D100: 24 | E100: 16 | F100: 16
A101: Melbourne IVF, East Melbourne | B101: 2020 | C101: 92.6 | D101: 869 | E101: 677 | F101: 702
A102: Melbourne IVF, Mt Waverley | B102: 222 | C102: 95.5 | D102: 74 | E102: 57 | F102: 59
A103: Monash IVF, Bendigo | B103: 35 | C103: 100.0 | D103: 12 | E103: 11 | F103: 11
A104: Monash IVF, Clayton (Monash IVF Monash Surgical Private Hospital) | B104: 1076 | C104: 94.1 | D104: 447 | E104: 359 | F104: 375
A105: Monash IVF, Geelong | B105: 201 | C105: 91.5 | D105: 78 | E105: 68 | F105: 72
A106: Monash IVF, Mildura | B106: 17 | C106: 82.4 | D106: 8 | E106: 8 | F106: 9
A107: Monash IVF, Richmond (Monash IVF Epworth Hospital) | B107: 459 | C107: 92.6 | D107: 198 | E107: 160 | F107: 167
A108: Monash IVF, Sale (Central Wellington Health Services) | B108: 18 | C108: 72.2 | D108: 1 | E108: 1 | F108: 1
A109: Monash IVF, Sunshine (Western Day Surgery) | B109: 62 | C109: 88.7 | D109: 22 | E109: 19 | F109: 19
A110: Newlife IVF, Box Hill | B110: 266 | C110: 94.7 | D110: 92 | E110: 75 | F110: 81
A111: Number 1 Fertility, East Melbourne | B111: 790 | C111: 100.0 | D111: 335 | E111: 272 | F111: 275
A112: Number 1 Fertility, Geelong | B112: 28 | C112: 100.0 | D112: 10 | E112: 8 | F112: 8
A113: Reproductive Services, Royal Women Hospital (Melbourne IVF) | B113: 870 | C113: 98.3 | D113: 250 | E113: 195 | F113: 199
A115: Aggregated total | B115: =SUM(B96:B114) -> 7643 | C115: 94.6 | D115: =SUM(D96:D114) -> 3005 | E115: 2397 | F115: 2486
A116: Age group | B116: All treatment sites by age group
A117: <35 | B117: 3028 | C117: 94.9 | D117: 1315 | E117: 1098 | F117: 1142
A118: 35-39 | B118: 3164 | C118: 95.6 | D118: 1272 | E118: 1010 | F118: 1044
A119: >=40 | B119: 1451 | C119: 91.9 | D119: 418 | E119: 289 | F119: 300
A120: Aggregated total | B120: =SUM(B117:B119) -> 7643 | C120: 94.6 | D120: =SUM(D117:D119) -> 3005 | E120: 2397 | F120: 2486
A123: Table 1.3c Artificial insemination (AI) cycles using partner sperm and pregnancy outcomes, 2019-20 financial year
B124: No. of cycles with AI performed | C124: No. of clinical pregnancies | D124: No. of live births | E124: No. of liveborn babies
A125: Treatment site | B125: All ages by treatment site
A126: Adora Fertility, Greensborough | B126: 26 | C126: 6 | D126: 5 | E126: 5
A127: Ballarat IVF, Ballarat | B127: 20 | C127: 0 | D127: 0 | E127: 0
A128: City Babies, Richmond | B128: 237 | C128: 26 | D128: 23 | E128: 24
A129: City Fertility Centre, Bundoora | B129: 10 | C129: 0 | D129: 0 | E129: 0
A130: City Fertility Centre, Melbourne | B130: 35 | C130: 5 | D130: 3 | E130: 3
A131: Genea, Melbourne | B131: 3 | C131: 0 | D131: 0 | E131: 0
A132: Melbourne IVF, East Melbourne | B132: 282 | C132: 31 | D132: 25 | E132: 28
A133: Melbourne IVF, Mt Waverley | B133: 19 | C133: 4 | D133: 4 | E133: 4
A134: Monash IVF, Bendigo | B134: 7 | C134: 0 | D134: 0 | E134: 0
A135: Monash IVF, Clayton (Monash IVF Monash Surgical Private Hospital) | B135: 125 | C135: 11 | D135: 11 | E135: 12
A136: Monash IVF, Geelong | B136: 23 | C136: 4 | D136: 4 | E136: 4
A137: Monash IVF, Mildura | B137: 4 | C137: 1 | D137: 0 | E137: 0
A138: Monash IVF, Richmond (Monash IVF Epworth Hospital) | B138: 45 | C138: 5 | D138: 4 | E138: 4
A139: Monash IVF, Sunshine (Western Day Surgery) | B139: 2 | C139: 0 | D139: 0 | E139: 0
A140: Number 1 Fertility, East Melbourne | B140: 88 | C140: 10 | D140: 7 | E140: 8
A141: Number 1 Fertility, Geelong | B141: 3 | C141: 0 | D141: 0 | E141: 0
A142: Reproductive Services, Royal Women Hospital (Melbourne IVF) | B142: 10 | C142: 1 | D142: 1 | E142: 1
A145: Aggregated total | B145: =SUM(B126:B144) -> 939 | C145: =SUM(C126:C144) -> 104 | D145: 87 | E145: 93
A146: Age group | B146: All treatment sites by age group
A147: <35 | B147: 451 | C147: 59 | D147: 52 | E147: 57
A148: 35-39 | B148: 341 | C148: 35 | D148: 28 | E148: 29
A149: >=40 | B149: 147 | C149: 10 | D149: 7 | E149: 7
A150: Aggregated total | B150: =SUM(B147:B149) -> 939 | C150: =SUM(C147:C149) -> 104 | D150: 87 | E150: 93
A153: Table 1.3d Artificial insemination (AI) cycles using donor sperm and pregnancy outcomes, 2019-20 financial year
B154: No. of cycles with AI performed | C154: No. of clinical pregnancies | D154: No. of live births | E154: No. of liveborn babies
A155: Treatment site | B155: All ages by treatment site
A156: Ballarat IVF, Ballarat | B156: 15 | C156: 0 | D156: 0 | E156: 0
A157: City Fertility Centre, Bundoora | B157: 17 | C157: 3 | D157: 3 | E157: 3
A158: City Fertility Centre, Melbourne | B158: 111 | C158: 13 | D158: 12 | E158: 12
A159: Genea, Melbourne | B159: 4 | C159: 0 | D159: 0 | E159: 0
A160: Melbourne IVF, East Melbourne | B160: 248 | C160: 41 | D160: 27 | E160: 30
A161: Melbourne IVF, Mt Waverley | B161: 38 | C161: 5 | D161: 3 | E161: 4
A162: Monash IVF, Bendigo | B162: 2 | C162: 1 | D162: 1 | E162: 2
A163: Monash IVF, Clayton (Monash IVF Monash Surgical Private Hospital) | B163: 53 | C163: 7 | D163: 5 | E163: 5
A164: Monash IVF, Geelong | B164: 11 | C164: 3 | D164: 2 | E164: 2
A165: Monash IVF, Mildura | B165: 4 | C165: 1 | D165: 1 | E165: 1
A166: Monash IVF, Richmond (Monash IVF Epworth Hospital) | B166: 57 | C166: 3 | D166: 2 | E166: 2
A167: Newlife IVF, Box Hill | B167: 13 | C167: 0 | D167: 0 | E167: 0
A168: Number 1 Fertility, East Melbourne | B168: 3 | C168: 1 | D168: 0 | E168: 0
A169: Reproductive Services, Royal Women Hospital (Melbourne IVF) | B169: 15 | C169: 3 | D169: 3 | E169: 3
A175: Aggregated total | B175: =SUM(B156:B174) -> 591 | C175: =SUM(C156:C174) -> 81 | D175: 59 | E175: 64
A176: Age group | B176: All treatment sites by age group
A177: <35 | B177: 261 | C177: 41 | D177: 33 | E177: 34
A178: 35-39 | B178: 291 | C178: 38 | D178: 25 | E178: 29
A179: >=40 | B179: 39 | C179: 2 | D179: 1 | E179: 1
A180: Aggregated total | B180: =SUM(B177:B179) -> 591 | C180: =SUM(C177:C179) -> 81 | D180: 59 | E180: 64
A184: Table 1.4 Treatment using thawed eggs and pregnancy outcomes, 2019-20 financial year
B185: Women using own eggs | G185: Women using donor/partner eggs*
A186: Treatment site | B186: No. of cycles with eggs thawed | C186: No. of cycles with embryos transferred | D186: No. of clinical pregnancies | E186: No. of live births | F186: No. of liveborn babies | G186: No. of cycles with eggs thawed | H186: No. of cycles with embryos transferred | I186: No. of clinical pregnancies | J186: No. of live births | K186: No. of liveborn babies
A187: Adora Fertility, Greensborough | B187: 2 | C187: 1 | D187: 0 | E187: 0 | F187: 0 | G187: 0 | H187: 0 | I187: 0 | J187: 0 | K187: 0
A188: Ballarat IVF, Ballarat | B188: 2 | C188: 0 | D188: 0 | E188: 0 | F188: 0 | G188: 0 | H188: 0 | I188: 0 | J188: 0 | K188: 0
A189: City Fertility Centre, Bundoora | B189: 4 | C189: 1 | D189: 1 | E189: 1 | F189: 1 | G189: 0 | H189: 0 | I189: 0 | J189: 0 | K189: 0
A190: City Fertility Centre, Melbourne | B190: 3 | C190: 2 | D190: 0 | E190: 0 | F190: 0 | G190: 2 | H190: 1 | I190: 1 | J190: 1 | K190: 1
A191: Genea, Melbourne | B191: 1 | C191: 1 | D191: 0 | E191: 0 | F191: 0 | G191: 0 | H191: 0 | I191: 0 | J191: 0 | K191: 0
A192: Melbourne IVF, East Melbourne | B192: 87 | C192: 63 | D192: 32 | E192: 21 | F192: 22 | G192: 3 | H192: 2 | I192: 1 | J192: 1 | K192: 1
A193: Melbourne IVF, Mt Waverley | B193: 1 | C193: 1 | D193: 0 | E193: 0 | F193: 0 | G193: 0 | H193: 0 | I193: 0 | J193: 0 | K193: 0
A194: Monash IVF, Bendigo | B194: 0 | C194: 0 | D194: 0 | E194: 0 | F194: 0 | G194: 1 | H194: 1 | I194: 1 | J194: 1 | K194: 1
A195: Monash IVF, Clayton (Monash IVF Monash Surgical Private Hospital) | B195: 48 | C195: 21 | D195: 3 | E195: 3 | F195: 3 | G195: 6 | H195: 3 | I195: 1 | J195: 1 | K195: 1
A196: Monash IVF, Geelong | B196: 2 | C196: 1 | D196: 0 | E196: 0 | F196: 0 | G196: 0 | H196: 0 | I196: 0 | J196: 0 | K196: 0
A197: Monash IVF, Richmond (Monash IVF Epworth Hospital) | B197: 25 | C197: 11 | D197: 4 | E197: 3 | F197: 3 | G197: 22 | H197: 19 | I197: 11 | J197: 11 | K197: 11
A198: Monash IVF, Sale (Central Wellington Health Services) | B198: 1 | C198: 0 | D198: 0 | E198: 0 | F198: 0 | G198: 0 | H198: 0 | I198: 0 | J198: 0 | K198: 0
A199: Monash IVF, Sunshine (Western Day Surgery) | B199: 6 | C199: 6 | D199: 2 | E199: 0 | F199: 0 | G199: 1 | H199: 0 | I199: 0 | J199: 0 | K199: 0
A200: Newlife IVF, Box Hill | B200: 3 | C200: 2 | D200: 2 | E200: 1 | F200: 1 | G200: 1 | H200: 0 | I200: 0 | J200: 0 | K200: 0
A201: Number 1 Fertility, East Melbourne | B201: 24 | C201: 11 | D201: 4 | E201: 3 | F201: 3 | G201: 0 | H201: 0 | I201: 0 | J201: 0 | K201: 0
A202: Reproductive Services, Royal Women Hospital (Melbourne IVF) | B202: 10 | C202: 9 | D202: 3 | E202: 3 | F202: 3 | G202: 0 | H202: 0 | I202: 0 | J202: 0 | K202: 0
A206: Aggregated total | B206: =SUM(B187:B205) -> 219 | C206: =SUM(C187:C205) -> 130 | D206: 51 | E206: 35 | F206: 36 | G206: 36 | H206: 26 | I206: 15 | J206: 15 | K206: 15
A207: * Donor eggs include those imported from interstate or overseas.
A209: Table 1.5 Surrogacy cycles and pregnancy outcomes, 2019-20 financial year
A210: This table includes cycles where embryo(s) was transferred to a surrogate woman.
A211: Treatment site | B211: No. of surrogate women | C211: No. of cycles with embryos transferred* | D211: % of single embryo transfer** | E211: No. of clinical pregnancies | F211: No. of live births | G211: No. of liveborn babies
A212: Genea, Melbourne | B212: 1 | C212: 1 | D212: 100.0 | E212: 0 | F212: 0 | G212: 0
A213: Melbourne IVF, East Melbourne | B213: 11 | C213: 14 | D213: 100.0 | E213: 6 | F213: 5 | G213: 5
A214: Monash IVF, Bendigo | B214: 1 | C214: 2 | D214: 100.0 | E214: 0 | F214: 0 | G214: 0
A215: Monash IVF, Clayton (Monash IVF Monash Surgical Private Hospital) | B215: 5 | C215: 6 | D215: 100.0 | E215: 5 | F215: 3 | G215: 3
A216: Monash IVF, Geelong | B216: 1 | C216: 3 | D216: 100.0 | E216: 1 | F216: 1 | G216: 1
A217: Monash IVF, Richmond (Monash IVF Epworth Hospital) | B217: 4 | C217: 5 | D217: 100.0 | E217: 1 | F217: 1 | G217: 1
A218: Monash IVF, Sunshine (Western Day Surgery) | B218: 1 | C218: 1 | D218: 100.0 | E218: 0 | F218: 0 | G218: 0
A219: Newlife IVF, Box Hill | B219: 1 | C219: 1 | D219: 100.0 | E219: 0 | F219: 0 | G219: 0
A220: Number 1 Fertility, East Melbourne | B220: 4 | C220: 6 | D220: 100.0 | E220: 1 | F220: 1 | G220: 1
A221: Number 1 Fertility, Geelong | B221: 1 | C221: 1 | D221: 100.0 | E221: 1 | F221: 1 | G221: 1
A231: Aggregated total | B231: =SUM(B212:B230) -> 30 | C231: =SUM(C212:C230) -> 40 | D231: 100.0 | E231: =SUM(E212:E230) -> 15 | F231: =SUM(F212:F230) -> 12 | G231: =SUM(G212:G230) -> 12
A232: **see noe page x
A234: There was 1 GIFT cycle and 1 ZIFT cycle in FY2020
A237: Table 1.6 Outcome for Preimplantation testing (PGT), 2019-20 financial year
A238: PGT-M is used for patients with a known genetic risk. PGT-A is used when for the detection of numerical chromosome abnormalities. PGD IVF/ICSI and thaw cycles may be initiated with the aim of freezing all embryos (no embryos transferred).
A239: Registered ART provider (all sites) | B239: No. of women in treatment | C239: No. of embryos tested* | D239: No. of embryos genetically-suitable for transfer | E239: No. of women in treatment** | F239: No. of genetically-suitable embryos transferred | G239: No. of clinical pregnancies | H239: No. of live births | I239: No. of liveborn babies
A240: PGT-M
A241: Adora Fertility | B241: n/a | C241: n/a | D241: n/a | E241: n/a | F241: n/a | G241: n/a | H241: n/a | I241: n/a
A242: Ballarat IVF | B242: n/a | C242: n/a | D242: n/a | E242: 1 | F242: 1 | G242: 1 | H242: 1 | I242: 1
... 35 more rows

Sheet Section 2 - ART procedures
A1: SECTION 2
A2: ART procedures, 2020-21 financial year
A3: This section provides details of ART treatment and clinical pregnancies for the 2020-21 financial year. As pregnancies are ongoing, some outcomes are not known at the time of this report going to print.
A5: Overview
A7: Table 2.1 Number of women treated, 2020-21 financial year
A8: Treatment site | B8: No. of women treated | F8: No. of cycles included | G8: No. of women with FSH stimulation | H8: No. of women with egg retrievals | I8: No. of women with fresh/thawed eggs and attempted IVF/ICSI fertilisation | J8: No. of women with embryos thawed | K8: No. of women with fresh/thawed embryos transferred | L8: No. of women with AI using partner sperm | M8: No. of women with AI using donor sperm
B9: < 35 | C9: 35-39 | D9: ≥ 40 | E9: All
A10: Adora Fertility, Greensborough | B10: 436 | C10: 404 | D10: 209 | E10: 1049 | F10: 2058 | G10: 858 | H10: 796 | I10: 766 | J10: 488 | K10: 879 | L10: 0 | M10: 0
A11: Ballarat IVF, Ballarat | B11: 201 | C11: 130 | D11: 58 | E11: 389 | F11: 871 | G11: 268 | H11: 252 | I11: 232 | J11: 248 | K11: 267 | L11: 8 | M11: 28
A12: City Babies, Richmond | B12: 63 | C12: 41 | D12: 16 | E12: 120 | F12: 249 | G12: 116 | H12: 0 | I12: 0 | J12: 0 | K12: 0 | L12: 120 | M12: 0
A13: City Fertility Centre, Bundoora | B13: 109 | C13: 74 | D13: 44 | E13: 227 | F13: 541 | G13: 198 | H13: 145 | I13: 137 | J13: 127 | K13: 146 | L13: 11 | M13: 15
A14: City Fertility Centre, Melbourne | B14: 264 | C14: 262 | D14: 136 | E14: 662 | F14: 1133 | G14: 467 | H14: 394 | I14: 334 | J14: 278 | K14: 398 | L14: 29 | M14: 106
A15: Genea, Melbourne | B15: 68 | C15: 66 | D15: 48 | E15: 182 | F15: 393 | G15: 160 | H15: 143 | I15: 124 | J15: 81 | K15: 126 | L15: 6 | M15: 2
A16: Melbourne IVF, East Melbourne | B16: 1416 | C16: 1693 | D16: 914 | E16: 4023 | F16: 8022 | G16: 3339 | H16: 2938 | I16: 2471 | J16: 1839 | K16: 2674 | L16: 272 | M16: 163
A17: Melbourne IVF, Mt Waverley | B17: 152 | C17: 160 | D17: 79 | E17: 391 | F17: 719 | G17: 324 | H17: 290 | I17: 252 | J17: 179 | K17: 282 | L17: 14 | M17: 13
A18: Monash IVF, Bendigo | B18: 72 | C18: 44 | D18: 16 | E18: 132 | F18: 225 | G18: 90 | H18: 72 | I18: 66 | J18: 70 | K18: 99 | L18: 8 | M18: 3
A19: Monash IVF, Clayton (Monash IVF Monash Surgical Private Hospital) | B19: 755 | C19: 856 | D19: 597 | E19: 2208 | F19: 3923 | G19: 1637 | H19: 1525 | I19: 1334 | J19: 985 | K19: 1444 | L19: 109 | M19: 31
A20: Monash IVF, Geelong | B20: 179 | C20: 162 | D20: 92 | E20: 433 | F20: 857 | G20: 323 | H20: 287 | I20: 261 | J20: 249 | K20: 318 | L20: 36 | M20: 11
A21: Monash IVF, Mildura | B21: 42 | C21: 25 | D21: 9 | E21: 76 | F21: 125 | G21: 62 | H21: 47 | I21: 44 | J21: 31 | K21: 51 | L21: 9 | M21: 1
A22: Monash IVF, Richmond (Monash IVF Epworth Hospital) | B22: 324 | C22: 380 | D22: 302 | E22: 1006 | F22: 1644 | G22: 668 | H22: 551 | I22: 475 | J22: 473 | K22: 622 | L22: 70 | M22: 20
A23: Monash IVF, Sale (Central Wellington Health Services) | B23: 41 | C23: 24 | D23: 15 | E23: 80 | F23: 117 | G23: 64 | H23: 59 | I23: 47 | J23: 20 | K23: 52 | L23: 0 | M23: 0
A24: Monash IVF, Sunshine (Western Day Surgery) | B24: 115 | C24: 96 | D24: 67 | E24: 278 | F24: 416 | G24: 238 | H24: 219 | I24: 194 | J24: 65 | K24: 170 | L24: 1 | M24: 0
A25: Newlife IVF, Box Hill | B25: 285 | C25: 327 | D25: 198 | E25: 810 | F25: 1650 | G25: 684 | H25: 754 | I25: 559 | J25: 372 | K25: 545 | L25: 0 | M25: 20
A26: Number 1 Fertility, East Melbourne | B26: 713 | C26: 1005 | D26: 496 | E26: 2214 | F26: 4519 | G26: 1887 | H26: 1715 | I26: 1275 | J26: 856 | K26: 1248 | L26: 206 | M26: 6
A27: Number 1 Fertility, Geelong | B27: 0 | C27: 6 | D27: 2 | E27: 8 | F27: 8 | G27: 8 | H27: 8 | I27: 5 | J27: 0 | K27: 0 | L27: 0 | M27: 0
A28: Reproductive Services, Royal Women Hospital (Melbourne IVF) | B28: 560 | C28: 436 | D28: 306 | E28: 1302 | F28: 2290 | G28: 1062 | H28: 991 | I28: 897 | J28: 533 | K28: 946 | L28: 13 | M28: 1
A29: Aggregated total | B29: =SUM(B10:B28) -> 5795 | C29: =SUM(C10:C28) -> 6191 | D29: 3604 | E29: 15590 | F29: 29760 | G29: 12453 | H29: 11186 | I29: 9473 | J29: 6894 | K29: 10267 | L29: 912 | M29: 420
A30: FSH: Follicle stimulating hormone. IVF: in vitro fertilisation. ICSI: intracytoplasmic sperm injection. AI: artificial insemination.
A33: Egg retrieval cycles
A35: Table 2.2 Number of egg retrieval cycles, 2020-21 financial year
A36: Treatment site | B36: No. of egg retrieval cycles | C36: No. of egg retrievals with eggs collected | D36: No. of eggs collected | E36: No. of cycles with eggs frozen | F36: No. of eggs frozen | G36: No. eggs collected per egg retrieval cycle | H36: No. of eggs frozen per egg retrieval cycle
A37: < 35
A38: Adora Fertility, Greensborough | B38: 424 | C38: 421 | D38: 4826 | E38: 8 | F38: 63 | G38: 11 | H38: 0
A39: Ballarat IVF, Ballarat | B39: 192 | C39: 188 | D39: 2211 | E39: 14 | F39: 136 | G39: 12 | H39: 1
A40: City Fertility Centre, Bundoora | B40: 90 | C40: 88 | D40: 1474 | E40: 4 | F40: 52 | G40: 16 | H40: 1
A41: City Fertility Centre, Melbourne | B41: 160 | C41: 159 | D41: 2000 | E41: 9 | F41: 65 | G41: 13 | H41: 0
A42: Genea, Melbourne | B42: 81 | C42: 79 | D42: 836 | E42: 16 | F42: 87 | G42: 10 | H42: 1
A43: Melbourne IVF, East Melbourne | B43: 1273 | C43: 1261 | D43: 17906 | E43: 261 | F43: 2998 | G43: 14 | H43: 2
A44: Melbourne IVF, Mt Waverley | B44: 143 | C44: 140 | D44: 1893 | E44: 17 | F44: 159 | G44: 13 | H44: 1
A45: Monash IVF, Bendigo | B45: 51 | C45: 51 | D45: 652 | E45: 5 | F45: 41 | G45: 13 | H45: 1
A46: Monash IVF, Clayton (Monash IVF Monash Surgical Private Hospital) | B46: 599 | C46: 598 | D46: 8131 | E46: 90 | F46: 908 | G46: 14 | H46: 2
A47: Monash IVF, Geelong | B47: 124 | C47: 122 | D47: 1830 | E47: 11 | F47: 111 | G47: 15 | H47: 1
A48: Monash IVF, Mildura | B48: 29 | C48: 29 | D48: 255 | E48: 1 | F48: 11 | G48: 9 | H48: 0
A49: Monash IVF, Richmond (Monash IVF Epworth Hospital) | B49: 206 | C49: 204 | D49: 2566 | E49: 45 | F49: 442 | G49: 12 | H49: 2
A50: Monash IVF, Sale (Central Wellington Health Services) | B50: 34 | C50: 33 | D50: 370 | E50: 3 | F50: 23 | G50: 11 | H50: 1
A51: Monash IVF, Sunshine (Western Day Surgery) | B51: 111 | C51: 110 | D51: 1303 | E51: 10 | F51: 85 | G51: 12 | H51: 1
A52: Newlife IVF, Box Hill | B52: 499 | C52: 304 | D52: 4406 | E52: 38 | F52: 396 | G52: 9 | H52: 1
A53: Number 1 Fertility, East Melbourne | B53: 739 | C53: 735 | D53: 10224 | E53: 181 | F53: 1715 | G53: 14 | H53: 2
A54: Reproductive Services, Royal Women Hospital (Melbourne IVF) | B54: 502 | C54: 497 | D54: 5184 | E54: 73 | F54: 723 | G54: 10 | H54: 1
A57: Aggregated total | B57: =SUM(B38:B56) -> 5257 | C57: =SUM(C38:C56) -> 5019 | D57: 66067 | E57: 786 | F57: 8015 | G57: 208 | H57: 18
A58: 35-39
A59: Adora Fertility, Greensborough | B59: 442 | C59: 434 | D59: 3611 | E59: 4 | F59: 28 | G59: 8 | H59: 0
A60: Ballarat IVF, Ballarat | B60: 132 | C60: 125 | D60: 1058 | E60: 11 | F60: 92 | G60: 8 | H60: 1
A61: City Fertility Centre, Bundoora | B61: 61 | C61: 60 | D61: 626 | E61: 1 | F61: 7 | G61: 10 | H61: 0
A62: City Fertility Centre, Melbourne | B62: 215 | C62: 211 | D62: 2012 | E62: 13 | F62: 113 | G62: 9 | H62: 1
A63: Genea, Melbourne | B63: 75 | C63: 73 | D63: 684 | E63: 14 | F63: 103 | G63: 9 | H63: 1
A64: Melbourne IVF, East Melbourne | B64: 1711 | C64: 1688 | D64: 19141 | E64: 302 | F64: 2994 | G64: 11 | H64: 2
A65: Melbourne IVF, Mt Waverley | B65: 159 | C65: 155 | D65: 1619 | E65: 17 | F65: 187 | G65: 10 | H65: 1
A66: Monash IVF, Bendigo | B66: 26 | C66: 26 | D66: 304 | E66: 3 | F66: 40 | G66: 12 | H66: 2
A67: Monash IVF, Clayton (Monash IVF Monash Surgical Private Hospital) | B67: 814 | C67: 805 | D67: 8194 | E67: 95 | F67: 863 | G67: 10 | H67: 1
A68: Monash IVF, Geelong | B68: 132 | C68: 132 | D68: 1434 | E68: 6 | F68: 77 | G68: 11 | H68: 1
A69: Monash IVF, Mildura | B69: 21 | C69: 21 | D69: 182 | E69: 0 | F69: 0 | G69: 9 | H69: 0
A70: Monash IVF, Richmond (Monash IVF Epworth Hospital) | B70: 274 | C70: 273 | D70: 2838 | E70: 66 | F70: 541 | G70: 10 | H70: 2
A71: Monash IVF, Sale (Central Wellington Health Services) | B71: 28 | C71: 27 | D71: 227 | E71: 12 | F71: 94 | G71: 8 | H71: 3
A72: Monash IVF, Sunshine (Western Day Surgery) | B72: 104 | C72: 104 | D72: 891 | E72: 14 | F72: 105 | G72: 9 | H72: 1
A73: Newlife IVF, Box Hill | B73: 604 | C73: 379 | D73: 4396 | E73: 57 | F73: 525 | G73: 7 | H73: 1
A74: Number 1 Fertility, East Melbourne | B74: 1200 | C74: 1188 | D74: 13925 | E74: 383 | F74: 3508 | G74: 12 | H74: 3
A75: Number 1 Fertility, Geelong | B75: 6 | C75: 6 | D75: 45 | E75: 3 | F75: 13 | G75: 8 | H75: 2
A76: Reproductive Services, Royal Women Hospital (Melbourne IVF) | B76: 423 | C76: 413 | D76: 3397 | E76: 33 | F76: 221 | G76: 8 | H76: 1
A78: Aggregated total | B78: =SUM(B59:B77) -> 6427 | C78: =SUM(C59:C77) -> 6120 | D78: 64584 | E78: 1034 | F78: 9511 | G78: 169 | H78: 23
A79: ≥ 40
A80: Adora Fertility, Greensborough | B80: 289 | C80: 279 | D80: 1660 | E80: 2 | F80: 17 | G80: 6 | H80: 0
A81: Ballarat IVF, Ballarat | B81: 41 | C81: 39 | D81: 293 | E81: 1 | F81: 6 | G81: 7 | H81: 0
A82: City Fertility Centre, Bundoora | B82: 44 | C82: 42 | D82: 310 | E82: 0 | F82: 0 | G82: 7 | H82: 0
A83: City Fertility Centre, Melbourne | B83: 120 | C83: 116 | D83: 869 | E83: 3 | F83: 14 | G83: 7 | H83: 0
A84: Genea, Melbourne | B84: 60 | C84: 59 | D84: 413 | E84: 0 | F84: 0 | G84: 7 | H84: 0
A85: Melbourne IVF, East Melbourne | B85: 1163 | C85: 1121 | D85: 8468 | E85: 69 | F85: 456 | G85: 7 | H85: 0
A86: Melbourne IVF, Mt Waverley | B86: 84 | C86: 81 | D86: 621 | E86: 4 | F86: 23 | G86: 7 | H86: 0
A87: Monash IVF, Bendigo | B87: 7 | C87: 7 | D87: 55 | E87: 0 | F87: 0 | G87: 8 | H87: 0
A88: Monash IVF, Clayton (Monash IVF Monash Surgical Private Hospital) | B88: 649 | C88: 630 | D88: 5265 | E88: 30 | F88: 207 | G88: 8 | H88: 0
A89: Monash IVF, Geelong | B89: 98 | C89: 95 | D89: 756 | E89: 2 | F89: 6 | G89: 8 | H89: 0
A90: Monash IVF, Mildura | B90: 8 | C90: 8 | D90: 41 | E90: 0 | F90: 0 | G90: 5 | H90: 0
A91: Monash IVF, Richmond (Monash IVF Epworth Hospital) | B91: 234 | C91: 230 | D91: 1923 | E91: 32 | F91: 209 | G91: 8 | H91: 1
A92: Monash IVF, Sale (Central Wellington Health Services) | B92: 15 | C92: 15 | D92: 136 | E92: 0 | F92: 0 | G92: 9 | H92: 0
A93: Monash IVF, Sunshine (Western Day Surgery) | B93: 67 | C93: 63 | D93: 476 | E93: 6 | F93: 28 | G93: 7 | H93: 0
A94: Newlife IVF, Box Hill | B94: 361 | C94: 277 | D94: 2455 | E94: 22 | F94: 122 | G94: 7 | H94: 0
A95: Number 1 Fertility, East Melbourne | B95: 686 | C95: 670 | D95: 5692 | E95: 71 | F95: 515 | G95: 8 | H95: 1
A96: Number 1 Fertility, Geelong | B96: 2 | C96: 2 | D96: 22 | E96: 0 | F96: 0 | G96: 11 | H96: 0
A97: Reproductive Services, Royal Women Hospital (Melbourne IVF) | B97: 359 | C97: 344 | D97: 1895 | E97: 13 | F97: 90 | G97: 5 | H97: 0
A99: Aggregated total | B99: =SUM(B80:B98) -> 4287 | C99: =SUM(C80:C98) -> 4078 | D99: 31350 | E99: 255 | F99: 1693 | G99: 132 | H99: 2
A100: All
A101: Adora Fertility, Greensborough | B101: 1155 | C101: 1134 | D101: 10097 | E101: 14 | F101: 108 | G101: 9 | H101: 0
A102: Ballarat IVF, Ballarat | B102: 365 | C102: 352 | D102: 3562 | E102: 26 | F102: 234 | G102: 10 | H102: 1
A103: City Fertility Centre, Bundoora | B103: 195 | C103: 190 | D103: 2410 | E103: 5 | F103: 59 | G103: 12 | H103: 0
A104: City Fertility Centre, Melbourne | B104: 495 | C104: 486 | D104: 4881 | E104: 25 | F104: 192 | G104: 10 | H104: 0
A105: Genea, Melbourne | B105: 216 | C105: 211 | D105: 1933 | E105: 30 | F105: 190 | G105: 9 | H105: 1
A106: Melbourne IVF, East Melbourne | B106: 4147 | C106: 4070 | D106: 45515 | E106: 632 | F106: 6448 | G106: 11 | H106: 2
A107: Melbourne IVF, Mt Waverley | B107: 386 | C107: 376 | D107: 4133 | E107: 38 | F107: 369 | G107: 11 | H107: 1
A108: Monash IVF, Bendigo | B108: 84 | C108: 84 | D108: 1011 | E108: 8 | F108: 81 | G108: 12 | H108: 1
A109: Monash IVF, Clayton (Monash IVF Monash Surgical Private Hospital) | B109: 2062 | C109: 2033 | D109: 21590 | E109: 215 | F109: 1978 | G109: 10 | H109: 1
A110: Monash IVF, Geelong | B110: 354 | C110: 349 | D110: 4020 | E110: 19 | F110: 194 | G110: 11 | H110: 1
A111: Monash IVF, Mildura | B111: 58 | C111: 58 | D111: 478 | E111: 1 | F111: 11 | G111: 8 | H111: 0
A112: Monash IVF, Richmond (Monash IVF Epworth Hospital) | B112: 714 | C112: 707 | D112: 7327 | E112: 143 | F112: 1192 | G112: 10 | H112: 2
A113: Monash IVF, Sale (Central Wellington Health Services) | B113: 77 | C113: 75 | D113: 733 | E113: 15 | F113: 117 | G113: 10 | H113: 2
A114: Monash IVF, Sunshine (Western Day Surgery) | B114: 282 | C114: 277 | D114: 2670 | E114: 30 | F114: 218 | G114: 9 | H114: 1
A115: Newlife IVF, Box Hill | B115: 1464 | C115: 960 | D115: 11257 | E115: 117 | F115: 1043 | G115: 8 | H115: 1
A116: Number 1 Fertility, East Melbourne | B116: 2625 | C116: 2593 | D116: 29841 | E116: 635 | F116: 5738 | G116: 11 | H116: 2
A117: Number 1 Fertility, Geelong | B117: 8 | C117: 8 | D117: 67 | E117: 3 | F117: 13 | G117: 8 | H117: 2
A118: Reproductive Services, Royal Women Hospital (Melbourne IVF) | B118: 1284 | C118: 1254 | D118: 10476 | E118: 119 | F118: 1034 | G118: 8 | H118: 1
A120: Aggregated total | B120: =SUM(B101:B119) -> 15971 | C120: =SUM(C101:C119) -> 15217 | D120: 162001 | E120: 2075 | F120: 19219 | G120: 177 | H120: 19
A122: Use of eggs
A124: Table 2.3 Number of ART cycles using fresh eggs, 2020-21 financial year
A126: Table 2.3a Attempted fertilisation, Victoria, 2020-21 financial year
B127: No. of cycles with attempted fertilisation | C127: % of cycles involving eggs treated with ICSI* | D127: No. of cycles with embryos formed* | E127: No. of embryos formed
A128: Treatment site | B128: All ages by treatment site
A129: Adora Fertility, Greensborough | B129: 1097 | C129: 51.0 | D129: 1023 | E129: 5527
A130: Ballarat IVF, Ballarat | B130: 325 | C130: 61.8 | D130: 307 | E130: 1981
A131: City Fertility Centre, Bundoora | B131: 180 | C131: 71.7 | D131: 168 | E131: 1247
A132: City Fertility Centre, Melbourne | B132: 402 | C132: 78.9 | D132: 378 | E132: 2135
A133: Genea, Melbourne | B133: 179 | C133: 44.1 | D133: 170 | E133: 975
A134: Melbourne IVF, East Melbourne | B134: 3393 | C134: 70.2 | D134: 3190 | E134: 19622
A135: Melbourne IVF, Mt Waverley | B135: 330 | C135: 71.2 | D135: 305 | E135: 1886
A136: Monash IVF, Bendigo | B136: 75 | C136: 64.0 | D136: 74 | E136: 570
A137: Monash IVF, Clayton (Monash IVF Monash Surgical Private Hospital) | B137: 1777 | C137: 81.7 | D137: 1670 | E137: 9772
A138: Monash IVF, Geelong | B138: 317 | C138: 91.2 | D138: 309 | E138: 2118
A139: Monash IVF, Mildura | B139: 54 | C139: 70.4 | D139: 47 | E139: 251
A140: Monash IVF, Richmond (Monash IVF Epworth Hospital) | B140: 547 | C140: 87.4 | D140: 523 | E140: 2913
A141: Monash IVF, Sale (Central Wellington Health Services) | B141: 58 | C141: 77.6 | D141: 54 | E141: 288
A142: Monash IVF, Sunshine (Western Day Surgery) | B142: 243 | C142: 89.3 | D142: 226 | E142: 1331
A143: Newlife IVF, Box Hill | B143: 830 | C143: 87.6 | D143: 779 | E143: 4550
A144: Number 1 Fertility, East Melbourne | B144: 1903 | C144: 84.5 | D144: 1678 | E144: 8849
A145: Number 1 Fertility, Geelong | B145: 5 | C145: 100.0 | D145: 4 | E145: 26
A146: Reproductive Services, Royal Women Hospital (Melbourne IVF) | B146: 1124 | C146: 56.9 | D146: 1055 | E146: 5244
A148: Aggregated total | B148: =SUM(B129:B147) -> 12839 | C148: 73.6 | D148: =SUM(D129:D147) -> 11960 | E148: 69285
A149: Age group | B149: All treatment sites by age group
A150: <35 | B150: 4121 | C150: 72.0 | D150: 3955 | E150: 28873
A151: 35-39 | B151: 4939 | C151: 74.3 | D151: 4638 | E151: 25855
A152: >=40 | B152: 3779 | C152: 74.3 | D152: 3367 | E152: 14557
A153: Aggregated total | B153: =SUM(B150:B152) -> 12839 | C153: 73.6 | D153: =SUM(D150:D152) -> 11960 | E153: 69285
A154: IVF: in vitro fertilisation. ICSI: intracytoplasmic sperm injection.
A155: * Fertilised eggs with two pronuclei
A156: ** See note page x
A158: Table 2.3b Number of ART cycles using fresh embryos after IVF/ICSI, 2020-21 financial year
B159: No. of cycles with embryos transferred | C159: No. of embryos transferred | D159: No. of cycles with embryos frozen* | E159: No. of cycles with all embryos frozen* | F159: No. of embryos frozen*
A160: Treatment site | B160: All ages by treatment site
A161: Adora Fertility, Greensborough | B161: 759 | C161: 858 | D161: 440 | E161: 124 | F161: 1271
A162: Ballarat IVF, Ballarat | B162: 42 | C162: 43 | D162: 240 | E162: 211 | F162: 796
A163: City Fertility Centre, Bundoora | B163: 32 | C163: 35 | D163: 113 | E163: 97 | F163: 447
A164: City Fertility Centre, Melbourne | B164: 208 | C164: 223 | D164: 242 | E164: 133 | F164: 711
A165: Genea, Melbourne | B165: 102 | C165: 110 | D165: 95 | E165: 36 | F165: 302
A166: Melbourne IVF, East Melbourne | B166: 1698 | C166: 1788 | D166: 2126 | E166: 1087 | F166: 7540
A167: Melbourne IVF, Mt Waverley | B167: 214 | C167: 221 | D167: 206 | E167: 51 | F167: 749
A168: Monash IVF, Bendigo | B168: 52 | C168: 52 | D168: 57 | E168: 18 | F168: 225
A169: Monash IVF, Clayton (Monash IVF Monash Surgical Private Hospital) | B169: 711 | C169: 808 | D169: 1086 | E169: 734 | F169: 3258
A170: Monash IVF, Geelong | B170: 120 | C170: 123 | D170: 231 | E170: 154 | F170: 810
A171: Monash IVF, Mildura | B171: 39 | C171: 40 | D171: 37 | E171: 7 | F171: 92
A172: Monash IVF, Richmond (Monash IVF Epworth Hospital) | B172: 226 | C172: 247 | D172: 359 | E172: 239 | F172: 1113
A173: Monash IVF, Sale (Central Wellington Health Services) | B173: 42 | C173: 51 | D173: 27 | E173: 9 | F173: 80
A174: Monash IVF, Sunshine (Western Day Surgery) | B174: 137 | C174: 149 | D174: 138 | E174: 62 | F174: 455
A175: Newlife IVF, Box Hill | B175: 332 | C175: 356 | D175: 515 | E175: 340 | F175: 1745
A176: Number 1 Fertility, East Melbourne | B176: 751 | C176: 751 | D176: 1193 | E176: 740 | F176: 4065
A177: Number 1 Fertility, Geelong | B177: 0 | C177: 0 | D177: 4 | E177: 4 | F177: 16
A178: Reproductive Services, Royal Women Hospital (Melbourne IVF) | B178: 705 | C178: 711 | D178: 537 | E178: 188 | F178: 1506
A180: Aggregated total | B180: =SUM(B161:B179) -> 6170 | C180: =SUM(C161:C179) -> 6566 | D180: 7646 | E180: 4234 | F180: 25181
A181: Age group | B181: All treatment sites by age group
A182: <35 | B182: 2070 | C182: 2118 | D182: 2998 | E182: 1586 | F182: 12132
A183: 35-39 | B183: 2385 | C183: 2494 | D183: 3070 | E183: 1665 | F183: 9333
A184: >=40 | B184: 1715 | C184: 1954 | D184: 1578 | E184: 983 | F184: 3716
A185: Aggregated total | B185: =SUM(B182:B184) -> 6170 | C185: =SUM(C182:C184) -> 6566 | D185: 7646 | E185: 4234 | F185: 25181
A186: * Embryos frozen may need to be suitable - i.e. of good quality and meeting freezing criteria.
A188: Table 2.4 Number of ART cycles using thawed eggs, 2020-21 financial year
A190: Table 2.4a Attempted fertilisation, 2020-21 financial year
A191: Women using own eggs
B192: No. of cycles with attempted fertilisation | C192: % of cycles involving eggs treated with ICSI | D192: No. of cycles with embryos formed* | E192: No. of embryos formed
A193: Treatment site | B193: All ages by treatment site
A194: Ballarat IVF, Ballarat | B194: 1 | C194: 100.0 | D194: 1 | E194: 1
A195: City Fertility Centre, Melbourne | B195: 4 | C195: 100.0 | D195: 4 | E195: 12
A196: Genea, Melbourne | B196: 3 | C196: 100.0 | D196: 3 | E196: 5
A197: Melbourne IVF, East Melbourne | B197: 69 | C197: 100.0 | D197: 68 | E197: 470
A198: Melbourne IVF, Mt Waverley | B198: 2 | C198: 100.0 | D198: 2 | E198: 18
A199: Monash IVF, Bendigo | B199: 1 | C199: 100.0 | D199: 1 | E199: 6
A200: Monash IVF, Clayton (Monash IVF Monash Surgical Private Hospital) | B200: 29 | C200: 100.0 | D200: 26 | E200: 161
A201: Monash IVF, Richmond (Monash IVF Epworth Hospital) | B201: 16 | C201: 100.0 | D201: 14 | E201: 72
A202: Monash IVF, Sale (Central Wellington Health Services) | B202: 1 | C202: 100.0 | D202: 1 | E202: 6
A203: Monash IVF, Sunshine (Western Day Surgery) | B203: 2 | C203: 100.0 | D203: 2 | E203: 8
A204: Newlife IVF, Box Hill | B204: 9 | C204: 100.0 | D204: 4 | E204: 42
A205: Number 1 Fertility, East Melbourne | B205: 21 | C205: 100.0 | D205: 21 | E205: 141
A206: Reproductive Services, Royal Women Hospital (Melbourne IVF) | B206: 7 | C206: 100.0 | D206: 6 | E206: 24
A213: Aggregated total | B213: =SUM(B194:B212) -> 165 | C213: 100.0 | D213: =SUM(D194:D212) -> 153 | E213: 966
A214: Age group | B214: All Treatment sites by age group
A215: <35 | B215: 50 | C215: 50.0 | D215: 46 | E215: 308
A216: 35-39 | B216: 41 | C216: 41.0 | D216: 39 | E216: 263
A217: >=40 | B217: 74 | C217: 74.0 | D217: 68 | E217: 395
A218: Aggregated total | B218: =SUM(B215:B217) -> 165 | C218: 100.0 | D218: =SUM(D215:D217) -> 153 | E218: 966
A219: Women using donor/partner eggs*
B220: No. of cycles with attempted fertilisation | C220: % of cycles involving eggs treated with ICSI | D220: No. of cycles with embryos formed* | E220: No. of embryos formed
A221: Treatment site | B221: All ages by treatment site
A222: Melbourne IVF, East Melbourne | B222: 9 | C222: 100.0 | D222: 9 | E222: 42
A223: Melbourne IVF, Mt Waverley | B223: 1 | C223: 100.0 | D223: 1 | E223: 6
A224: Monash IVF, Clayton (Monash IVF Monash Surgical Private Hospital) | B224: 3 | C224: 100.0 | D224: 3 | E224: 12
... 130 more rows

Sheet Section 3 - AI
A1: SECTION 3
A2: Artificial insemination (AI), 2020-21 financial year
A3: This section provides detail of AI treatment and clinical pregnancies for the 2020-21 financial year.
A4: This data only includes AI insemination at registered ART providers and does not include AI at private doctor's facilities.
A6: Table 3.1 AI with partner sperm for stimulated/unstimulated cycles, 2020-21 financial year
A7: All ages
A8: Treatment site | B8: No. of cycles with AI performed | C8: No. of clinical pregnancies
A9: Ballarat IVF, Ballarat | B9: 12 | C9: 0
A10: City Babies, Richmond | B10: 249 | C10: 28
A11: City Fertility Centre, Bundoora | B11: 12 | C11: 3
A12: City Fertility Centre, Melbourne | B12: 37 | C12: 6
A13: Genea, Melbourne | B13: 15 | C13: 0
A14: Melbourne IVF, East Melbourne | B14: 426 | C14: 46
A15: Melbourne IVF, Mt Waverley | B15: 20 | C15: 0
A16: Monash IVF, Bendigo | B16: 9 | C16: 1
A17: Monash IVF, Clayton (Monash IVF Monash Surgical Private Hospital) | B17: 177 | C17: 18
A18: Monash IVF, Geelong | B18: 65 | C18: 5
A19: Monash IVF, Mildura | B19: 11 | C19: 4
A20: Monash IVF, Richmond (Monash IVF Epworth Hospital) | B20: 99 | C20: 9
A21: Monash IVF, Sunshine (Western Day Surgery) | B21: 1 | C21: 0
A22: Number 1 Fertility, East Melbourne | B22: 309 | C22: 15
A23: Reproductive Services, Royal Women Hospital (Melbourne IVF) | B23: 19 | C23: 5
A28: Aggregated total | B28: =SUM(B9:B27) -> 1461 | C28: =SUM(C9:C27) -> 140
A29: AI: artificial insemination. FSH: follicle stimulating hormone
A32: Table 3.2 AI with donor sperm for stimulated/unstimulated cycles, 2020-21 financial year
A33: All ages
A34: Treatment site | B34: No. of cycles with AI performed | C34: No. of clinical pregnancies
A35: Ballarat IVF, Ballarat | B35: 48 | C35: 4
A36: City Fertility Centre, Bundoora | B36: 29 | C36: 4
A37: City Fertility Centre, Melbourne | B37: 153 | C37: 12
A38: Genea, Melbourne | B38: 4 | C38: 0
A39: Melbourne IVF, East Melbourne | B39: 276 | C39: 38
A40: Melbourne IVF, Mt Waverley | B40: 22 | C40: 2
A41: Monash IVF, Bendigo | B41: 5 | C41: 1
A42: Monash IVF, Clayton (Monash IVF Monash Surgical Private Hospital) | B42: 45 | C42: 11
A43: Monash IVF, Geelong | B43: 15 | C43: 4
A44: Monash IVF, Mildura | B44: 1 | C44: 0
A45: Monash IVF, Richmond (Monash IVF Epworth Hospital) | B45: 28 | C45: 2
A46: Newlife IVF, Box Hill | B46: 30 | C46: 5
A47: Number 1 Fertility, East Melbourne | B47: 8 | C47: 0
A48: Reproductive Services, Royal Women Hospital (Melbourne IVF) | B48: 1 | C48: 1
A54: Aggregated total | B54: =SUM(B35:B53) -> 665 | C54: =SUM(C35:C53) -> 84
A56: AI: artificial insemination. FSH: follicle stimulating hormone
A57: * Number of clinical pregnancies only included those reported by the date on page x.

Sheet Section 4 Donor
A1: SECTION 4
A2: Donor ART treatment, 2020-21 financial year
A3: For use of AI, refer to section 3. For storage of donor sperm, refer to section 7
A5: Table 4.1 Number of recipients and clinical pregnancies by donation type, 2020-21 financial year
A6: This table includes cycles where embryo(s) was transferred. Figures do not include all clinical pregnancies, only those with ultrasound scan available before date on page x.
A7: Donation type (all treatment sites) | B7: No. of recipients treated | C7: No. of cycles with embryos transferred | D7: No. of clinical pregnancies* | E7: % clinical pregnancies per embryo transfer cycle
A8: Donor embryo | B8: 106 | C8: 143 | D8: 47 | E8: 32.9
A9: Donor/partner eggs
A10: --- Fresh egg | B10: 244 | C10: 87 | D10: 38 | E10: 43.7
A11: --- Thawed egg | B11: 66 | C11: 43 | D11: 17 | E11: 39.5
A12: --- Embryos from donated eggs | B12: 285 | C12: 388 | D12: 132 | E12: 34.0
A13: Donor sperm* | B13: 187 | C13: 237 | D13: 95 | E13: 40.1
A14: Aggregated total** | B14: =SUM(B8:B13) -> 888 | C14: =SUM(C8:C13) -> 898 | D14: 329 | E14: =IF(C14=0,0,(D14/C14)*100) -> 36.6
A16: ** Excluded AI using donor sperm. Refer to table 3.2
A17: ** Some recipients had both donated eggs and sperm.
A20: Table 4.2 Number of egg, sperm and embryo donors used in treatment by method of recruitment, 2020-21 financial year*
A22: Registered ART provider (all sites) | B22: No. egg donors | E22: No. sperm donors | H22: No. embryo donors
B23: Recipient recruited | C23: Overseas egg bank recruited | D23: Clinic recruited | E23: Recipient recruited | F23: Overseas sperm bank recruited | G23: Clinic recruited | H23: Recipient recruited | I23: Clinic recruited
A24: Adora Fertility | B24: n/a | C24: n/a | D24: n/a | E24: n/a | F24: n/a | G24: n/a | H24: n/a | I24: n/a
A25: Ballarat IVF | B25: 14 | C25: n/a | D25: 4 | E25: 5 | F25: n/a | G25: 25 | H25: 2 | I25: 5
A26: City Babies | B26: n/a | C26: n/a | D26: n/a | E26: n/a | F26: n/a | G26: n/a | H26: n/a | I26: n/a
A27: City Fertility Centre | B27: 75 | C27: 0 | D27: 14 | E27: 2 | F27: 0 | G27: 85 | H27: 0 | I27: 2
A28: Genea | B28: 3 | C28: 0 | D28: 0 | E28: 2 | F28: 7 | G28: 0 | H28: 1 | I28: 0
A29: Melbourne IVF, including Reproductive Services, RWH | B29: 69 | C29: 0 | D29: 5 | E29: 71 | F29: 0 | G29: 105 | H29: 24 | I29: 21
A30: Monash IVF | B30: 80 | C30: 33 | D30: 2 | E30: 28 | F30: 4 | G30: 137 | H30: 15 | I30: 11
A31: Newlife IVF | B31: 18 | C31: 0 | D31: 0 | E31: 14 | F31: 3 | G31: 11 | H31: 1 | I31: 0
A32: Number 1 Fertility | B32: 28 | C32: 10 | D32: n/a | E32: 28 | F32: n/a | G32: 10 | H32: 0 | I32: n/a
A33: Aggregated total | B33: 287 | C33: 43 | D33: 25 | E33: 150 | F33: 14 | G33: 373 | H33: 43 | I33: 39
A34: * Donors may include commissioning couples or individuals entering into surrogacy arrangements
A36: Table 4.3 Number of recipients and treatment cycles with donor/partner eggs, 2020-21 financial year
A38: Registered ART provider (all sites) | B38: No. recipients commencing treatment with donor/partner eggs | E38: No. of cycles commenced using donor/partner eggs
B39: Recipient recruited | C39: Overseas egg bank recruited | D39: Clinic recruited | E39: Recipient recruited | F39: Overseas egg bank recruited | G39: Clinic recruited
A40: FRESH
A41: Adora Fertility | B41: n/a | C41: n/a | D41: n/a | E41: n/a | F41: n/a | G41: n/a
A42: Ballarat IVF | B42: 9 | C42: n/a | D42: 3 | E42: 12 | F42: n/a | G42: 4
A43: City Babies | B43: n/a | C43: n/a | D43: n/a | E43: n/a | F43: n/a | G43: n/a
A44: City Fertility Centre | B44: 44 | C44: 0 | D44: 12 | E44: 72 | F44: 0 | G44: 12
A45: Genea | B45: 3 | C45: 0 | D45: 0 | E45: 3 | F45: 0 | G45: 0
A46: Melbourne IVF, including Reproductive Services, RWH | B46: 97 | C46: 0 | D46: 0 | E46: 140 | F46: 0 | G46: 0
A47: Monash IVF | B47: 74 | C47: 0 | D47: 2 | E47: 86 | F47: 0 | G47: 2
A48: Newlife IVF | B48: 11 | C48: 0 | D48: 0 | E48: 11 | F48: 0 | G48: 0
A49: Number 1 Fertility | B49: 25 | C49: n/a | D49: n/a | E49: 30 | F49: n/a | G49: n/a
A50: Aggregated total | B50: 263 | C50: 0 | D50: 17 | E50: 354 | F50: 0 | G50: 18
A51: THAWED
A52: Adora Fertility | B52: n/a | C52: n/a | D52: n/a | E52: n/a | F52: n/a | G52: n/a
A53: Ballarat IVF | B53: 0 | C53: n/a | D53: 0 | E53: 0 | F53: n/a | G53: 0
A54: City Babies | B54: n/a | C54: n/a | D54: n/a | E54: n/a | F54: n/a | G54: n/a
A55: City Fertility Centre | B55: 3 | C55: 0 | D55: 2 | E55: 2 | F55: 0 | G55: 3
A56: Genea | B56: 0 | C56: 0 | D56: 0 | E56: 0 | F56: 0 | G56: 0
A57: Melbourne IVF, including Reproductive Services, RWH | B57: 7 | C57: 0 | D57: 5 | E57: 7 | F57: 0 | G57: 5
A58: Monash IVF | B58: 5 | C58: 35 | D58: 0 | E58: 5 | F58: 40 | G58: 0
A59: Newlife IVF | B59: 13 | C59: 0 | D59: 0 | E59: 17 | F59: 0 | G59: 0
A60: Number 1 Fertility | B60: 24 | C60: 11 | D60: n/a | E60: 48 | F60: 11 | G60: n/a
A61: Aggregated total | B61: 52 | C61: 46 | D61: 7 | E61: 79 | F61: 51 | G61: 8
A64: Table 4.4 Relationship status of recipients of donor sperm treatment, 2020-21 financial year
A66: Registered ART provider (all sites) | B66: Relationship status of woman receiving donor sperm treatment
B67: Single | C67: Same-sex | D67: Heterosexual | E67: Other
A68: Adora Fertility | B68: n/a | C68: n/a | D68: n/a | E68: n/a
A69: Ballarat IVF | B69: 37 | C69: 15 | D69: 12 | E69: 0
A70: City Babies | B70: n/a | C70: n/a | D70: n/a | E70: n/a
A71: City Fertility Centre | B71: 134 | C71: 170 | D71: 19 | E71: 0
A72: Genea | B72: 6 | C72: 1 | D72: 2 | E72: 0
A73: Melbourne IVF, including Reproductive Services, RWH | B73: 359 | C73: 216 | D73: 86 | E73: 0
A74: Monash IVF | B74: 270 | C74: 101 | D74: 68 | E74: 0
A75: Newlife IVF | B75: 44 | C75: 30 | D75: 10 | E75: 0
A76: Number 1 Fertility | B76: 16 | C76: 15 | D76: 8 | E76: 0
A77: Aggregated total | B77: 866 | C77: 548 | D77: 205 | E77: 0

Sheet Section 5 - Surrogacy
A1: SECTION 5
A2: Surrogacy, 2020-21 financial year
A4: Table 5 Surrogacy cycles and clinical pregnancies, 2020-21 financial year
A5: This table includes cycles where embryo(s) was transferred to a surrogate woman during the financial year. Figures do not include all clinical pregnancies, only those with ultrasound scan available before the date on page x.
A6: Treatment site | B6: No. of surrogate women | C6: No. of cycles with embryos transferred | D6: No. of clinical pregnancies
A7: City Fertility Centre, Melbourne | B7: 2 | C7: 2 | D7: 2
A8: Melbourne IVF, East Melbourne | B8: 8 | C8: 12 | D8: 5
A9: Monash IVF, Bendigo | B9: 1 | C9: 1 | D9: 0
A10: Monash IVF, Clayton (Monash IVF Monash Surgical Private Hospital) | B10: 10 | C10: 13 | D10: 6
A11: Monash IVF, Geelong | B11: 1 | C11: 4 | D11: 1
A12: Monash IVF, Richmond (Monash IVF Epworth Hospital) | B12: 8 | C12: 11 | D12: 7
A13: Monash IVF, Sunshine (Western Day Surgery) | B13: 1 | C13: 1 | D13: 1
A14: Newlife IVF, Box Hill | B14: 3 | C14: 4 | D14: 1
A15: Number 1 Fertility, East Melbourne | B15: 8 | C15: 11 | D15: 4
A26: Aggregated total | B26: =SUM(B7:B25) -> 42 | C26: =SUM(C7:C25) -> 59 | D26: 27
A27: * see note page 27
A28: Example note: 100% surrogacy cycles involving the transfer of an embryo were single embryo transfers

Sheet Section 6 - Storage of gametes
A1: SECTION 6
A2: Storage of gametes, 2020-21 financial year
A4: Table 6.1 Storage of sperm, ovarian tissue, eggs and embryos, 2020-21 financial year
A6: Registered ART provider (all sites) | B6: No. of patients with sperm in storage as at 30 June 2021 | C6: No. of patients with ovarian tissue in storage as at 30 June 2021 | D6: No. of patients with eggs in storage as at 30 June 2021 | E6: No. of patients with embryos in storage as at 30 June 2021 | F6: No. of embryos in storage as at 30 June 2021
A7: Adora Fertility | B7: 172 | C7: n/a | D7: 12 | E7: 1004 | F7: 2923
A8: Ballarat IVF | B8: 200 | C8: n/a | D8: 38 | E8: 547 | F8: 1698
A9: City Babies | B9: n/a | C9: n/a | D9: n/a | E9: n/a | F9: n/a
A10: City Fertility Centre | B10: 532 | C10: n/a | D10: 162 | E10: 1155 | F10: 3646
A11: Genea | B11: 28 | C11: 0 | D11: 17 | E11: 61 | F11: 179
A12: Melbourne IVF, including Reproductive Services, RWH | B12: 1738 | C12: 462 | D12: 2413 | E12: 6551 | F12: 23690
A13: Monash IVF | B13: 1814 | C13: 76 | D13: 1349 | E13: 5190 | F13: 17307
A14: Newlife IVF | B14: 119 | C14: 0 | D14: 94 | E14: 517 | F14: 2040
A15: Number 1 Fertility | B15: 257 | C15: 3 | D15: 891 | E15: 1611 | F15: 5456
A16: Aggregated total | B16: 4860 | C16: 541 | D16: 4976 | E16: 16636 | F16: 56939
A18: Table 6.2 Storage of donor sperm, 2020-21 financial year
A20: Registered ART provider (all sites) | B20: No. of donors whose sperm is stored and available for donor treatment at 1 July 2020 (start of period) | C20: New donors recruited during reporting financial year
A21: Adora Fertility | B21: n/a | C21: n/a
A22: Ballarat IVF | B22: 36 | C22: 0
A23: City Babies | B23: n/a | C23: n/a
A24: City Fertility Centre | B24: 65 | C24: 42
A25: Genea | B25: 10 | C25: 0
A26: Melbourne IVF, including Reproductive Services, RWH | B26: 222 | C26: 19
A27: Monash IVF | B27: 35 | C27: 20
A28: Newlife IVF | B28: 9 | C28: 32
A29: Number 1 Fertility | B29: 0 | C29: 1
A30: Aggregated total | B30: 377 | C30: 114

Sheet Section - 7 PGT
A1: SECTION 7
A2: Preimplantation genetic testing, 2020-21 financial year
A4: Table 7 Preimplantation testing (PGT), 2020-21 financial year
A6: Registered ART provider (all sites) | B6: No. of women in treatment | C6: No. of embryos tested* | D6: No. of embryos genetically-suitable for transfer | E6: No. of women in treatment** | F6: No. of genetically-suitable embryos transferred
A7: Pre-implantation testing for single gene disorders (PGT-M)
A8: Adora Fertility | B8: n/a | C8: n/a | D8: n/a | E8: n/a | F8: n/a
A9: Ballarat IVF | B9: n/a | C9: n/a | D9: n/a | E9: 0 | F9: 0
A10: City Babies | B10: n/a | C10: n/a | D10: n/a | E10: n/a | F10: n/a
A11: City Fertility Centre | B11: 12 | C11: 34 | D11: 15 | E11: 7 | F11: 12
A12: Genea | B12: 2 | C12: 14 | D12: 2 | E12: 2 | F12: 2
A13: Melbourne IVF, including Reproductive Services, RWH | B13: 131 | C13: 828 | D13: 336 | E13: 133 | F13: 186
A14: Monash IVF | B14: 54 | C14: 231 | D14: 75 | E14: 49 | F14: 66
A15: Newlife IVF | B15: 16 | C15: 112 | D15: 20 | E15: 9 | F15: 13
A16: Number 1 Fertility | B16: 16 | C16: 107 | D16: 30 | E16: 13 | F16: 14
A17: Aggregated total | B17: 231 | C17: 1326 | D17: 478 | E17: 213 | F17: 293
A18: Pre-implantation testing for aneuploidy (incorrect chromasomal numbers, PGT-A)
A19: Adora Fertility | B19: n/a | C19: n/a | D19: n/a | E19: n/a | F19: n/a
A20: Ballarat IVF | B20: n/a | C20: n/a | D20: n/a | E20: 1 | F20: 3
A21: City Babies | B21: n/a | C21: n/a | D21: n/a | E21: n/a | F21: n/a
A22: City Fertility Centre | B22: 73 | C22: 160 | D22: 116 | E22: 66 | F22: 77
A23: Genea | B23: 39 | C23: 144 | D23: 83 | E23: 40 | F23: 61
A24: Melbourne IVF, including Reproductive Services, RWH | B24: 609 | C24: 2401 | D24: 1147 | E24: 450 | F24: 622
A25: Monash IVF | B25: 570 | C25: 1704 | D25: 917 | E25: 382 | F25: 480
A26: Newlife IVF | B26: 218 | C26: 873 | D26: 366 | E26: 124 | F26: 162
A27: Number 1 Fertility | B27: 595 | C27: 2111 | D27: 931 | E27: 403 | F27: 500
A28: Aggregated total | B28: 2104 | C28: 7393 | D28: 3560 | E28: 1466 | F28: 1905
A29: Non-invasive pre-implantation testing for aneuploidy (NIPGT***)
A30: Adora Fertility | B30: n/a | C30: n/a | D30: n/a | E30: n/a | F30: n/a
A31: Ballarat IVF | B31: n/a | C31: n/a | D31: n/a | E31: 0 | F31: 0
A32: City Babies | B32: n/a | C32: n/a | D32: n/a | E32: n/a | F32: n/a
A33: City Fertility Centre | B33: n/a | C33: n/a | D33: n/a | E33: n/a | F33: n/a
A34: Genea | B34: 0 | C34: 0 | D34: 0 | E34: 0 | F34: 0
A35: Melbourne IVF, including Reproductive Services, RWH | B35: n/a | C35: n/a | D35: n/a | E35: n/a | F35: n/a
A36: Monash IVF | B36: 105 | C36: 227 | D36: 53 | E36: 85 | F36: 101
A37: Newlife IVF | B37: 0 | C37: 0 | D37: 0 | E37: 0 | F37: 0
A38: Number 1 Fertility | B38: n/a | C38: n/a | D38: n/a | E38: n/a | F38: n/a
A39: Aggregated total | B39: 105 | C39: 227 | D39: 53 | E39: 85 | F39: 101
A40: PGT-M: preimplantation genetic testing for single gene disorders; PGT-A: preimplantation genetic screening for aneuploidy
A41: NIPGT: non-invasive preimplantation genetic testing for aneuploidy
A42: * Either fresh embryos or thawed frozen embryos may be tested. Some patients will have some fresh and thawed frozen embryos tested.
A43: ** Women may have treatment using embryos tested and stored in a prior year
A44: *** Non-invasive PGT. Note that some women will have some embryos bipsied and some tested by NI-PGT

Sheet Treatment Cycles
A1: Treatment Cycles
A3: Figure 7, Number of patients and treatment cycles per financial year, 2008-09 to 2019-20
B4: 2008/09 | C4: 2009/10 | D4: 2010/11 | E4: 2011/12 | F4: 2012/13 | G4: 2013/14 | H4: 2014/15 | I4: 2015/16 | J4: 2016/17 | K4: 2017/18 | L4: 2018/19 | M4: 2019/20 | N4: 2020/21
A5: Number of patients | B5: 9262 | C5: 9525 | D5: 9685 | E5: 10252 | F5: 10598 | G5: 11113 | H5: 11317 | I5: 12182 | J5: 12885 | K5: 12378 | L5: 12871 | M5: 13041 | N5: 15590
A6: < 35 years | B6: 3387 | C6: 3426 | D6: 3515 | E6: 3695 | F6: 3893 | G6: 4165 | H6: 4281 | I6: 4500 | J6: 4608 | K6: 4588 | L6: 4729 | M6: 4847 | N6: 5795
A7: 35-39 years | B7: 3520 | C7: 3585 | D7: 3523 | E7: 3758 | F7: 3780 | G7: 3954 | H7: 4058 | I7: 4425 | J7: 4817 | K7: 4767 | L7: 5172 | M7: 5185 | N7: 6191
A8: ≥ 40 years | B8: 2355 | C8: 2514 | D8: 2647 | E8: 2799 | F8: 2925 | G8: 2994 | H8: 2978 | I8: 3257 | J8: 3460 | K8: 3023 | L8: 3271 | M8: 3009 | N8: 3604
A9: < 35 years | B9: 36.6 | C9: 36.0 | D9: 36.3 | E9: =E6/E5*100 -> 36.0 | F9: 36.7 | G9: 37.5 | H9: 37.8 | I9: 36.9 | J9: 35.8 | K9: 37.1 | L9: 36.7 | M9: 37.2 | N9: 37.2
A10: 35-39 years | B10: 38.0 | C10: 37.6 | D10: 36.4 | E10: =E7/E5*100 -> 36.7 | F10: 35.7 | G10: 35.6 | H10: 35.9 | I10: 36.3 | J10: 37.4 | K10: 38.5 | L10: 40.2 | M10: 39.8 | N10: 39.7
A11: ≥ 40 years | B11: 25.4 | C11: 26.4 | D11: 27.3 | E11: =E8/E5*100 -> 27.3 | F11: 27.6 | G11: 26.9 | H11: 26.3 | I11: 26.7 | J11: 26.9 | K11: 24.4 | L11: 25.4 | M11: 23.1 | N11: 23.1
A13: Number of cycles | B13: 17687 | C13: 18530 | D13: 18057 | E13: 19361 | F13: 19847 | G13: 20632 | H13: 20585 | I13: 22488 | J13: 24009 | K13: 23042 | L13: 23586 | M13: 23509 | N13: 29760
A21: Note:
A22: AI was not report for 2008/09
A23: 2008/09, 2009/10, 2010/11, 2011/12, 2012/13, 2013/14, 2014/15, 2015/16, 2016/17, 2017/18, 2018/19, 2019/20 data were from the final outcome data
A24: 2020/21 data were from the treatment data
A28: Transposed table from figure source data can be found on page 32 of the annual report

Sheet Donor Registers
A1: Donor Registers
A4: Clinic notifications of births to the Central Register – year ending 30 June 2021
A5: Clinic notifications of births | B5: From sperm donation | C5: From egg donation | D5: From both sperm & egg or embryo donation | E5: Total
A6: From 1 July 2020 to 30 June 2021 | B6: 547 | C6: 94 | D6: 32 | E6: 673
A8: Central Register
A10: Applications to the Central Register | E10: 71
A12: Donors added to the Central Register in 2020-21 financial year
A13: Donors on Central Register by type | B13: Sperm donor* | C13: Egg donor* | D13: Total
A14: Donors added in 2020-21 | B14: 149 | C14: 130 | D14: 279
A15: Total donors at 30 June 2021 | B15: 2,140 | C15: 2,235 | D15: 4,375
A16: *NOTE: includes embryo donors – embryo donors are currently recorded separately as sperm donor and egg donor
A18: Total records on the Central Register
A19: Number of records on the Central Register | B19: Donors | C19: Donor-conceived people | D19: Recipient parents
A20: Total at 30 June 2021 | B20: 4,375 | C20: 12,244 | D20: 15,505
A22: Voluntray Register
A24: Applications to the Voluntary Register | F24: 94

Sheet Import and Export
A1: Import and Export
A4: Application | B4: Individual | D4: Class
B5: Applications | D5: applications
B6: Import | C6: Export | D6: Import | E6: Export
A7: Total received | B7: 86 | C7: 47 | D7: 35 | E7: 0
A8: Status by donated embryos / gamete type
A9: Donor sperm | B9: 43 | C9: 19 | D9: 18 | E9: –
A10: Approved | B10: 36 | C10: 18 | D10: 18 | E10: –
A11: Withdrawn | B11: 5 | C11: – | D11: – | E11: –
A12: Not approved | B12: – | C12: – | D12: – | E12: –
A13: Pending [1] | B13: 1 | C13: 1 | D13: – | E13: –
A15: Donor eggs | B15: 10 | C15: 3 | D15: 17 | E15: –
A16: Approved | B16: 6 | C16: 2 | D16: 17 | E16: –
A17: Withdrawn | B17: 2 | C17: 1 | D17: – | E17: –
A18: Not approved | B18: – | C18: – | D18: – | E18: –
A19: Pending | B19: 2 | C19: – | D19: – | E19: –
B20: 33 | C20: 25 | D20: – | E20: –
A22: Embryos formed using
A23: donor sperm and eggs
A25: Approved | B25: 18 | C25: 20 | D25: – | E25: –
A26: Withdrawn | B26: 3 | C26: 1 | D26: – | E26: –
A27: Not approved | B27: 3 | C27: – | D27: – | E27: –
A28: Pending | B28: 8 | C28: 4 | D28: – | E28: –
A33: [1] Pending indicates application incomplete or further information required from the applicant or their ART provider.
